[Event "WYCC 2018 O14"]
[Site "Halkidiki"]
[Date "2018.10.28"]
[Round "9"]
[White "Chatzieleftheriou, Andreas"]
[Black "Turgut, Aydin"]
[Result "1/2-1/2"]
[ECO "C68"]
[WhiteElo "1984"]
[BlackElo "2156"]
[Annotator "NA"]
[PlyCount "139"]
[EventDate "2018.10.20"]
[EventType "swiss"]
[EventCountry "GRE"]
[SourceTitle "playchess.com"]
[Source "ChessBase"]
[SourceQuality "1"]
[TimeControl "40/5400+30:1800+30"]

1. e4 e5 {[%emt 0:00:00]} 2. Nf3 {[%emt 0:00:00]} Nc6 {[%emt 0:00:00]} 3. Bb5 {[%emt 0:00:00]} a6 {[%emt 0:00:00]} 4. Bxc6 {[%emt 0:00:00]} dxc6 {[%emt 0:00:00]} 5. Nc3 {[%emt 0:00:01]} f6 {[%emt 0:03:53]} 6. d4 exd4 {[%emt 0:00:09]} 7. Qxd4 {[%emt 0:00:23]} Qxd4 {[%emt 0:00:07]} 8. Nxd4 {[%emt 0:00:04]} Bd6 {[%emt 0:00:08]} 9. Be3 {[%emt 0:00:29]} Ne7 {[%emt 0:02:15]} 10. O-O-O {[%emt 0:05:18]} O-O {[%emt 0:04:08]} 11. Nb3 {[%emt 0:16:00]} Re8 {[%emt 0:13:52]} 12. Bc5 {[%emt 0:11:49]} Bf4+ {[%emt 0:09:03]} 13. Kb1 {[%emt 0:01:43]} Ng6 {[%emt 0:04:48]} 14. f3 {[%emt 0:09:29]} Ne5 {[%emt 0:14:09]} 15. Bf2 {[%emt 0:06:10]} Nc4 {[%emt 0:03:38]} 16. Bg3 {[%emt 0:03:37]} Bxg3 {[%emt 0:04:13]} 17. hxg3 {[%emt 0:00:02]} b6 {[%emt 0:02:45]} 18. g4 {[%emt 0:07:03]} h6 {[%emt 0:04:41]} 19. Rhe1 {[%emt 0:04:12]} Kf7 {[%emt 0:02:57]} 20. Nc1 {[%emt 0:01:51]} Be6 {[%emt 0:02:12]} 21. b3 {[%emt 0:02:51]} Ne5 {[%emt 0:02:45]} 22. Nd3 {[%emt 0:02:08]} a5 {[%emt 0:05:49]} 23. Nxe5+ {[%emt 0:03:28]} fxe5 {[%emt 0:01:23]} 24. Rd2 {[%emt 0:05:48]} Kf6 {[%emt 0:02:35]} 25. a4 {[%emt 0:02:11]} Rab8 {[%emt 0:03:52]} 26. Kc1 {[%emt 0:00:49]} Rh8 {[%emt 0:00:08]} 27. g3 {[%emt 0:01:25]} Ke7 {[%emt 0:05:39]} 28. Re3 {[%emt 0:01:04]} Rbf8 {[%emt 0:00:22]} 29. Nd1 {[%emt 0:02:25]} h5 {[%emt 0:03:33]} 30. gxh5 {[%emt 0:01:57]} Rxh5 {[%emt 0:00:07]} 31. Nf2 {[%emt 0:00:38]} Bc8 {[%emt 0:02:40]} 32. Nd3 {[%emt 0:01:17]} Rd8 {[%emt 0:02:28]} 33. Rf2 {[%emt 0:03:51]} Ba6 {[%emt 0:00:52]} 34. f4 {[%emt 0:01:32]} Bxd3 {[%emt 0:00:04]} 35. cxd3 {[%emt 0:00:10]} Rf8 {[%emt 0:00:41]} 36. Ref3 {[%emt 0:00:39]} Rh1+ {[%emt 0:00:59]} 37. Kc2 {[%emt 0:00:35]} exf4 {[%emt 0:00:43]} 38. gxf4 {[%emt 0:00:47]} Rg1 {[%emt 0:00:16]} 39. f5 {[%emt 0:02:39]} Kd6 {[%emt 0:01:00]} 40. f6 {[%emt 0:00:00]} gxf6 {[%emt 0:00:00]} 41. Rxf6+ {[%emt 0:04:21]} Rxf6 {[%emt 0:02:22]} 42. Rxf6+ {[%emt 0:00:13]} Kc5 {[%emt 0:05:34]} 43. Rf7 {[%emt 0:06:25]} Kb4 {[%emt 0:07:57]} 44. Rxc7 {[%emt 0:02:02]} Rg2+ {[%emt 0:00:07]} 45. Kd1 {[%emt 0:00:46]} c5 {[%emt 0:02:04]} 46. Rc6 {[%emt 0:09:40]} Kxb3 {[%emt 0:10:05]} 47. Rxb6+ {[%emt 0:00:55]} Kc3 {[%emt 0:00:01]} 48. Rd6 {[%emt 0:01:01]} Rd2+ {[%emt 0:01:23]} 49. Kc1 {[%emt 0:02:58]} c4 {[%emt 0:03:01]} 50. Rd5 {[%emt 0:03:52]} Re2 {[%emt 0:02:45]} 51. Kd1 {[%emt 0:01:36]} cxd3 {[%emt 0:00:08]} 52. Rxa5 {[%emt 0:04:25]} Rh2 {[%emt 0:00:42]} 53. Rc5+ {[%emt 0:00:24]} Kd4 {[%emt 0:00:03]} 54. Rg5 {[%emt 0:00:41]} Rh1+ {[%emt 0:01:10]} 55. Kd2 {[%emt 0:00:12]} Rh2+ {[%emt 0:00:01]} 56. Kd1 {[%emt 0:00:04]} Ra2 {[%emt 0:00:57]} 57. a5 {[%emt 0:00:32]} Ra1+ {[%emt 0:00:17]} 58. Kd2 {[%emt 0:00:06]} Ra2+ {[%emt 0:00:02]} 59. Kd1 {[%emt 0:00:02]} Kc4 {[%emt 0:00:59]} 60. Rd5 {[%emt 0:00:36]} Kc3 {[%emt 0:00:50]} 61. Rc5+ {[%emt 0:00:09]} Kd4 {[%emt 0:00:03]} 62. Rh5 {[%emt 0:00:15]} Kxe4 {[%emt 0:00:35]} 63. Rh4+ {[%emt 0:00:57]} Ke3 {[%emt 0:00:09]} 64. Rh3+ {[%emt 0:00:03]} Kd4 {[%emt 0:00:03]} 65. Rh8 {[%emt 0:00:09]} Rxa5 {[%emt 0:01:16]} 66. Rd8+ {[%emt 0:00:05]} Ke4 {[%emt 0:00:13]} 67. Re8+ {[%emt 0:00:04]} Re5 {[%emt 0:00:42]} 68. Rxe5+ {[%emt 0:00:12]} Kxe5 {[%emt 0:00:03]} 69. Kd2 {[%emt 0:00:05]} Kd4 {[%emt 0:00:04]} 70. Kd1 {[%emt 0:00:09]} 1/2-1/2

[Event "WYCC 2018 O14"]
[Site "Halkidiki"]
[Date "2018.10.28"]
[Round "9"]
[White "Gaal, Zsoka"]
[Black "Muntean, Victor"]
[Result "1-0"]
[ECO "A49"]
[WhiteElo "1976"]
[BlackElo "1876"]
[Annotator "NA"]
[PlyCount "83"]
[EventDate "2018.10.20"]
[EventType "swiss"]
[EventCountry "GRE"]
[SourceTitle "playchess.com"]
[Source "ChessBase"]
[SourceQuality "1"]
[TimeControl "40/5400+30:1800+30"]

1. d4 {[%emt 0:00:00]} Nf6 {[%emt 0:00:00]} 2. Nf3 {[%emt 0:00:00]} g6 {[%emt 0:00:00]} 3. g3 {[%emt 0:00:11]} Bg7 {[%emt 0:00:00]} 4. Bg2 {[%emt 0:00:10]} O-O {[%emt 0:00:00]} 5. O-O {[%emt 0:00:14]} d6 {[%emt 0:00:14]} 6. b3 {[%emt 0:00:47]} c5 {[%emt 0:00:20]} 7. c4 {[%emt 0:02:07]} Nc6 {[%emt 0:03:22]} 8. Bb2 {[%emt 0:01:28]} a6 {[%emt 0:08:18]} 9. d5 {[%emt 0:06:47]} Na5 {[%emt 0:05:23]} 10. Nbd2 {[%emt 0:05:37]} b5 {[%emt 0:09:01]} 11. Rc1 {[%emt 0:07:22]} e6 {[%emt 0:08:08]} 12. dxe6 {[%emt 0:07:10]} fxe6 {[%emt 0:01:54]} 13. Bc3 {[%emt 0:17:16]} Bb7 {[%emt 0:04:08]} 14. Ng5 {[%emt 0:06:11]} Bxg2 {[%emt 0:02:35]} 15. Nxe6 {[%emt 0:05:26]} Qe7 {[%emt 0:03:43]} 16. Kxg2 {[%emt 0:06:49]} Nxb3 {[%emt 0:05:55]} 17. Nxf8 {[%emt 0:08:37]} Nxc1 {[%emt 0:00:10]} 18. Bxf6 {[%emt 0:03:41]} Qxf6 {[%emt 0:03:31]} 19. Nxh7 {[%emt 0:03:35]} Kxh7 {[%emt 0:04:01]} 20. Qxc1 {[%emt 0:00:22]} bxc4 {[%emt 0:03:44]} 21. Qxc4 {[%emt 0:02:59]} Qd4 {[%emt 0:02:00]} 22. Qxd4 {[%emt 0:02:09]} Bxd4 {[%emt 0:00:18]} 23. e3 {[%emt 0:00:21]} Bf6 {[%emt 0:03:19]} 24. Rb1 {[%emt 0:02:25]} Ra7 {[%emt 0:06:27]} 25. e4 {[%emt 0:04:06]} Bd8 {[%emt 0:03:26]} 26. Nc4 {[%emt 0:01:09]} Bc7 {[%emt 0:00:50]} 27. f4 {[%emt 0:02:04]} Kg7 {[%emt 0:00:22]} 28. Kf3 {[%emt 0:01:00]} Kf7 {[%emt 0:01:43]} 29. g4 {[%emt 0:00:58]} Ke6 {[%emt 0:01:03]} 30. f5+ {[%emt 0:00:50]} gxf5 {[%emt 0:00:11]} 31. gxf5+ {[%emt 0:00:14]} Kd7 {[%emt 0:02:35]} 32. h4 {[%emt 0:01:49]} Ra8 {[%emt 0:00:39]} 33. h5 {[%emt 0:01:32]} Kc6 {[%emt 0:01:33]} 34. Ne3 {[%emt 0:00:32]} Rh8 {[%emt 0:01:39]} 35. Rh1 {[%emt 0:00:12]} Bd8 {[%emt 0:03:32]} 36. Nd5 {[%emt 0:01:09]} c4 {[%emt 0:01:23]} 37. h6 {[%emt 0:00:18]} Rh7 {[%emt 0:01:01]} 38. Kg4 {[%emt 0:00:32]} Kd7 {[%emt 0:00:45]} 39. Kh5 {[%emt 0:00:30]} Rh8 {[%emt 0:01:05]} 40. Kg6 {[%emt 0:00:00]} Rg8+ {[%emt 0:00:00]} 41. Kf7 {[%emt 0:02:40]} Rh8 {[%emt 0:02:58]} 42. Kg7 {[%emt 0:03:19]} 1-0

[Event "WYCC 2018 O14"]
[Site "Halkidiki"]
[Date "2018.10.28"]
[Round "9"]
[White "Tombolis, Christopher"]
[Black "Abelakiotis, Stavros"]
[Result "1/2-1/2"]
[ECO "E46"]
[WhiteElo "1882"]
[BlackElo "1994"]
[Annotator "NA"]
[PlyCount "149"]
[EventDate "2018.10.20"]
[EventType "swiss"]
[EventCountry "GRE"]
[SourceTitle "playchess.com"]
[Source "ChessBase"]
[SourceQuality "1"]
[TimeControl "40/5400+30:1800+30"]

1. d4 {[%emt 0:00:00]} Nf6 {[%emt 0:00:00]} 2. c4 {[%emt 0:00:00]} e6 {[%emt 0:00:11]} 3. Nc3 {[%emt 0:00:00]} Bb4 {[%emt 0:00:10]} 4. e3 {[%emt 0:00:00]} O-O {[%emt 0:00:15]} 5. Nge2 {[%emt 0:00:00]} d5 {[%emt 0:00:27]} 6. a3 {[%emt 0:00:00]} Be7 {[%emt 0:00:21]} 7. cxd5 {[%emt 0:00:20]} exd5 {[%emt 0:00:06]} 8. Nf4 {[%emt 0:00:06]} c6 {[%emt 0:00:06]} 9. Bd3 {[%emt 0:02:25]} Na6 {[%emt 0:00:19]} 10. O-O {[%emt 0:04:51]} Nc7 {[%emt 0:00:09]} 11. h3 {[%emt 0:04:24]} Re8 {[%emt 0:03:09]} 12. Qc2 {[%emt 0:18:16]} h6 {[%emt 0:08:03]} 13. b4 {[%emt 0:01:48]} Bd6 {[%emt 0:05:12]} 14. b5 {[%emt 0:15:27]} cxb5 {[%emt 0:03:19]} 15. Bxb5 {[%emt 0:05:51]} Nxb5 {[%emt 0:07:34]} 16. Nxb5 {[%emt 0:00:24]} b6 {[%emt 0:14:42]} 17. Nxd6 {[%emt 0:04:25]} Qxd6 {[%emt 0:00:47]} 18. a4 {[%emt 0:02:02]} Ba6 {[%emt 0:02:47]} 19. Ba3 {[%emt 0:06:44]} Qd7 {[%emt 0:01:27]} 20. Rfc1 {[%emt 0:02:31]} Rac8 {[%emt 0:05:35]} 21. Qd1 {[%emt 0:08:39]} Rxc1 {[%emt 0:03:33]} 22. Rxc1 {[%emt 0:01:49]} Bc4 {[%emt 0:04:40]} 23. a5 {[%emt 0:01:52]} bxa5 {[%emt 0:05:27]} 24. Nd3 {[%emt 0:00:26]} Bxd3 {[%emt 0:02:03]} 25. Qxd3 {[%emt 0:00:05]} Rc8 {[%emt 0:02:31]} 26. Rxc8+ {[%emt 0:10:21]} Qxc8 {[%emt 0:00:05]} 27. Bc5 {[%emt 0:00:08]} Ne4 {[%emt 0:05:36]} 28. Qa3 {[%emt 0:05:20]} Qc7 {[%emt 0:12:36]} 29. h4 {[%emt 0:03:25]} h5 {[%emt 0:04:15]} 30. Qa4 {[%emt 0:02:21]} Kh7 {[%emt 0:05:55]} 31. Qb5 {[%emt 0:00:43]} g6 {[%emt 0:02:16]} 32. Qe8 {[%emt 0:00:37]} Nf6 {[%emt 0:01:52]} 33. Qf8 {[%emt 0:00:27]} Qd7 {[%emt 0:00:30]} 34. g3 {[%emt 0:00:33]} a4 {[%emt 0:00:26]} 35. Bd6 {[%emt 0:00:35]} Qe8 {[%emt 0:00:32]} 36. Kf1 {[%emt 0:00:21]} Qb5+ {[%emt 0:00:32]} 37. Ke1 {[%emt 0:00:30]} Qd7 {[%emt 0:00:30]} 38. Ke2 {[%emt 0:00:31]} Qb5+ {[%emt 0:00:29]} 39. Ke1 {[%emt 0:00:08]} Qe8 {[%emt 0:00:29]} 40. Kd1 {[%emt 0:00:00]} Qxf8 {[%emt 0:00:00]} 41. Bxf8 {[%emt 0:00:21]} Ne4 {[%emt 0:04:26]} 42. Ke2 {[%emt 0:01:08]} a5 {[%emt 0:04:45]} 43. f3 {[%emt 0:07:26]} Nxg3+ {[%emt 0:02:18]} 44. Kf2 {[%emt 0:00:56]} Nf5 {[%emt 0:01:55]} 45. Bc5 {[%emt 0:00:21]} a3 {[%emt 0:14:12]} 46. Bxa3 {[%emt 0:01:05]} f6 {[%emt 0:00:08]} 47. Bc5 {[%emt 0:01:04]} Kg7 {[%emt 0:00:28]} 48. e4 {[%emt 0:00:32]} dxe4 {[%emt 0:00:17]} 49. fxe4 {[%emt 0:00:04]} Nxh4 {[%emt 0:00:34]} 50. d5 {[%emt 0:02:00]} Kf7 {[%emt 0:02:27]} 51. d6 {[%emt 0:00:21]} Ke6 {[%emt 0:00:13]} 52. Bd4 {[%emt 0:00:19]} a4 {[%emt 0:01:25]} 53. Kg3 {[%emt 0:08:23]} g5 {[%emt 0:03:08]} 54. d7 {[%emt 0:00:41]} Kxd7 {[%emt 0:00:10]} 55. Bxf6 {[%emt 0:00:06]} Ke6 {[%emt 0:01:33]} 56. Bxg5 {[%emt 0:01:18]} Ng6 {[%emt 0:00:04]} 57. Bc1 {[%emt 0:00:25]} h4+ {[%emt 0:00:57]} 58. Kf3 {[%emt 0:03:20]} Kd6 {[%emt 0:00:30]} 59. Ba3+ {[%emt 0:01:21]} Kc6 {[%emt 0:00:31]} 60. Kg4 {[%emt 0:01:06]} Kb5 {[%emt 0:00:13]} 61. Bd6 {[%emt 0:00:09]} Kc4 {[%emt 0:00:31]} 62. Ba3 {[%emt 0:03:25]} Kd4 {[%emt 0:00:34]} 63. Kf3 {[%emt 0:00:32]} Ne5+ {[%emt 0:00:37]} 64. Kf4 {[%emt 0:00:28]} Nd3+ {[%emt 0:00:32]} 65. Kg4 {[%emt 0:00:53]} Kxe4 {[%emt 0:00:33]} 66. Kxh4 {[%emt 0:00:07]} Kd4 {[%emt 0:00:22]} 67. Kg3 {[%emt 0:01:00]} Kc3 {[%emt 0:00:10]} 68. Kf3 {[%emt 0:00:35]} Kb3 {[%emt 0:00:12]} 69. Be7 {[%emt 0:00:46]} Nb4 {[%emt 0:00:24]} 70. Ke2 {[%emt 0:00:12]} a3 {[%emt 0:01:22]} 71. Kd2 {[%emt 0:00:24]} a2 {[%emt 0:00:30]} 72. Bf6 {[%emt 0:00:15]} Nc2 {[%emt 0:00:31]} 73. Be5 {[%emt 0:01:07]} Na3 {[%emt 0:00:29]} 74. Bf6 {[%emt 0:02:24]} a1=Q {[%emt 0:00:28]} 75. Bxa1 {[%emt 0:00:07]} 1/2-1/2

[Event "WYCC 2018 O14"]
[Site "Halkidiki"]
[Date "2018.10.29"]
[Round "10"]
[White "Kacharava, Nikolozi"]
[Black "Huang, Renjie"]
[Result "1-0"]
[ECO "B76"]
[WhiteElo "2373"]
[BlackElo "2322"]
[Annotator "NA"]
[PlyCount "101"]
[EventDate "2018.10.20"]
[EventType "swiss"]
[EventCountry "GRE"]
[SourceTitle "playchess.com"]
[Source "ChessBase"]
[SourceQuality "1"]
[TimeControl "40/5400+30:1800+30"]

1. e4 {[%emt 0:00:00]} c5 {[%emt 0:00:00]} 2. Nf3 {[%emt 0:00:25]} d6 {[%emt 0:00:00]} 3. d4 {[%emt 0:00:49]} cxd4 {[%emt 0:00:00]} 4. Nxd4 {[%emt 0:00:43]} Nf6 {[%emt 0:00:00]} 5. Nc3 {[%emt 0:00:46]} g6 {[%emt 0:00:00]} 6. Be3 {[%emt 0:00:43]} Bg7 {[%emt 0:00:06]} 7. f3 {[%emt 0:00:32]} O-O {[%emt 0:00:10]} 8. Qd2 {[%emt 0:00:33]} Nc6 {[%emt 0:00:06]} 9. g4 {[%emt 0:01:10]} e6 {[%emt 0:02:12]} 10. O-O-O {[%emt 0:11:49]} d5 {[%emt 0:00:22]} 11. g5 {[%emt 0:02:43] B76: Sizilianisch (Moderne Drachen-Variante)} Nh5 $1 {[%emt 0:00:30] LiveBook: 10 Partien} 12. Nb3 {[%emt 0:02:57]} d4 $146 {[%emt 0:05:34]} 13. Nxd4 {[%emt 0:03:04]} Nxd4 {[%emt 0:00:07]} 14. Bxd4 {[%emt 0:00:27]} Bxd4 {[%emt 0:00:05]} 15. Qxd4 {[%emt 0:00:11]} Qxg5+ {[%emt 0:00:05]} 16. Qd2 {[%emt 0:06:01]} Qf6 {[%emt 0:00:13]} 17. Qe3 {[%emt 0:01:13]} b6 {[%emt 0:03:42]} 18. e5 {[%emt 0:02:58]} Qf4 {[%emt 0:00:32]} 19. Qxf4 {[%emt 0:02:33]} Nxf4 {[%emt 0:01:43]} 20. Rd4 {[%emt 0:10:13]} Nh5 {[%emt 0:00:28]} 21. Be2 {[%emt 0:01:51]} Bb7 {[%emt 0:04:24]} 22. Rhd1 {[%emt 0:01:43]} Ng7 {[%emt 0:00:23]} 23. Nb5 {[%emt 0:07:10]} Nf5 {[%emt 0:04:03]} 24. R4d2 {[%emt 0:07:46]} Ne3 $11 {[%emt 0:02:19]} 25. Re1 {[%emt 0:00:38]} Ng2 {[%emt 0:00:31]} 26. Rf1 {[%emt 0:04:10]} Nf4 {[%emt 0:01:27]} 27. Nd6 {[%emt 0:01:16]} Bd5 {[%emt 0:01:30]} 28. c4 {[%emt 0:06:59]} Bc6 {[%emt 0:00:06]} 29. b4 {[%emt 0:01:42]} Rad8 {[%emt 0:01:10]} 30. c5 {[%emt 0:03:23]} bxc5 {[%emt 0:02:53]} 31. bxc5 {[%emt 0:00:21]} Rb8 {[%emt 0:01:07]} 32. Bc4 {[%emt 0:03:40]} Rb4 {[%emt 0:00:13]} 33. Rb2 {[%emt 0:01:03]} Ra4 {[%emt 0:02:06]} 34. Kd2 {[%emt 0:01:58]} Rd8 {[%emt 0:03:59]} 35. Ke3 {[%emt 0:04:25]} Rxd6 {[%emt 0:00:41]} 36. cxd6 {[%emt 0:01:27]} Rxc4 {[%emt 0:00:04]} 37. Rb8+ {[%emt 0:02:00]} Kg7 {[%emt 0:00:06]} 38. Rc8 {[%emt 0:00:53]} Nd5+ {[%emt 0:00:44]} 39. Kf2 {[%emt 0:06:02]} Rc2+ {[%emt 0:00:25]} 40. Kg3 {[%emt 0:00:00]} Ne3 {[%emt 0:00:00]} 41. Re1 {[%emt 0:14:08]} Nf5+ {[%emt 0:43:28]} 42. Kh3 {[%emt 0:00:08]} Rc3 {[%emt 0:01:40]} 43. Rxc6 {[%emt 0:05:01]} Rxf3+ {[%emt 0:00:08]} 44. Kg2 {[%emt 0:00:54]} Rd3 {[%emt 0:00:56]} 45. Rcc1 {[%emt 0:01:42]} Kf8 {[%emt 0:10:38]} 46. Kh1 {[%emt 0:01:39]} Nd4 {[%emt 0:03:20]} 47. Rc8+ {[%emt 0:04:43]} Kg7 {[%emt 0:00:21]} 48. d7 {[%emt 0:00:41]} Nf3 {[%emt 0:00:06]} 49. Rf1 {[%emt 0:01:14]} Nxh2 {[%emt 0:01:21]} 50. d8=Q {[%emt 0:01:51]} Rxd8 {[%emt 0:00:07]} 51. Rxd8 {[%emt 0:00:04]} 1-0

[Event "WYCC 2018 O14"]
[Site "Halkidiki"]
[Date "2018.10.29"]
[Round "10"]
[White "Murzin, Volodar"]
[Black "Krallis, Christos"]
[Result "1-0"]
[ECO "C50"]
[WhiteElo "2340"]
[BlackElo "2139"]
[Annotator "NA"]
[PlyCount "75"]
[EventDate "2018.10.20"]
[EventType "swiss"]
[EventCountry "GRE"]
[SourceTitle "playchess.com"]
[Source "ChessBase"]
[SourceQuality "1"]
[TimeControl "40/5400+30:1800+30"]

1. e4 {[%emt 0:00:34]} e5 {[%emt 0:00:00]} 2. Nf3 {[%emt 0:00:05]} Nc6 {[%emt 0:00:00]} 3. Bc4 {[%emt 0:00:12]} Bc5 {[%emt 0:00:00]} 4. O-O {[%emt 0:00:28]} Nf6 {[%emt 0:00:16]} 5. d3 {[%emt 0:00:16]} d6 {[%emt 0:00:52]} 6. c3 {[%emt 0:00:23]} a6 {[%emt 0:00:55]} 7. a4 {[%emt 0:02:27] C54: Italienische Partie (Hauptvariante)} Ba7 {[%emt 0:00:13]} 8. Nbd2 {[%emt 0:06:32]} h6 {[%emt 0:00:34]} 9. Re1 {[%emt 0:08:38]} g5 {[%emt 0:00:13]} 10. Nf1 {[%emt 0:04:42]} g4 {[%emt 0:00:09]} 11. N3d2 {[%emt 0:06:44] LiveBook: 6 Games} h5 {[%emt 0:00:11]} 12. Ne3 {[%emt 0:00:13]} h4 {[%emt 0:01:20]} 13. Ndf1 {[%emt 0:00:40]} Rg8 {[%emt 0:00:16] [#]} 14. g3 $146 {[%emt 0:03:52]} ({Vorgänger:} 14. b4 Be6 15. Bxe6 fxe6 {1-0 (37) Demchenko,A (2672)-Bologan,V (2600) Batumi 2018}) 14... Be6 {[%emt 0:05:03]} 15. Bxe6 {[%emt 0:13:42]} fxe6 {[%emt 0:00:11]} 16. b4 {[%emt 0:00:10]} hxg3 {[%emt 0:08:09]} 17. fxg3 {[%emt 0:05:09]} Ne7 {[%emt 0:03:11]} 18. b5 {[%emt 0:07:07]} Qd7 $11 {[%emt 0:08:28]} 19. bxa6 {[%emt 0:00:29]} bxa6 {[%emt 0:00:11]} 20. Ra2 {[%emt 0:03:27]} d5 {[%emt 0:02:51]} 21. Rf2 {[%emt 0:01:13]} Rg6 {[%emt 0:00:31]} 22. Kh1 {[%emt 0:11:06]} dxe4 {[%emt 0:09:20]} 23. Rxf6 {[%emt 0:00:48]} Rxf6 {[%emt 0:01:32]} 24. Nxg4 {[%emt 0:00:01]} Rf7 {[%emt 0:14:30]} 25. dxe4 {[%emt 0:04:48]} Qd6 {[%emt 0:21:59]} 26. Qe2 {[%emt 0:01:55]} Rd8 {[%emt 0:08:39]} 27. Be3 {[%emt 0:04:18]} Bxe3 {[%emt 0:00:50]} 28. Nfxe3 {[%emt 0:00:08]} Ng6 {[%emt 0:07:55]} 29. Nc4 {[%emt 0:09:21]} Qc5 {[%emt 0:00:14]} 30. Nge3 {[%emt 0:00:03]} Ke7 {[%emt 0:02:37]} 31. Qh5 {[%emt 0:00:44]} Rg8 {[%emt 0:01:08]} 32. Rd1 {[%emt 0:02:40]} Qc6 {[%emt 0:03:07]} 33. Qg5+ {[%emt 0:01:11]} Rf6 {[%emt 0:00:06]} 34. Ng4 {[%emt 0:00:45]} Qxe4+ {[%emt 0:00:02]} 35. Kg1 {[%emt 0:00:05]} Rgf8 {[%emt 0:01:21]} 36. Nce3 {[%emt 0:00:11]} R8f7 {[%emt 0:00:33]} 37. Nxf6 {[%emt 0:00:15]} Rxf6 {[%emt 0:00:19]} 38. Ng4 {[%emt 0:00:00]} 1-0

[Event "WYCC 2018 O14"]
[Site "Halkidiki"]
[Date "2018.10.29"]
[Round "10"]
[White "Stoyanov, Tsvetan"]
[Black "Ngo, Duc Tri"]
[Result "1-0"]
[ECO "C50"]
[WhiteElo "2340"]
[BlackElo "1883"]
[Annotator "NA"]
[PlyCount "97"]
[EventDate "2018.10.20"]
[EventType "swiss"]
[EventCountry "GRE"]
[SourceTitle "playchess.com"]
[Source "ChessBase"]
[SourceQuality "1"]
[TimeControl "40/5400+30:1800+30"]

1. e4 {[%emt 0:00:00]} e5 {[%emt 0:07:42]} 2. Nf3 {[%emt 0:02:43]} Nc6 {[%emt 0:01:52]} 3. Bc4 {[%emt 0:05:13]} Bc5 {[%emt 0:00:07]} 4. d3 {[%emt 0:00:34]} d6 {[%emt 0:02:41]} 5. a4 {[%emt 0:07:08]} Be6 {[%emt 0:00:18]} 6. Bxe6 {[%emt 0:01:18]} fxe6 {[%emt 0:00:05]} 7. c3 {[%emt 0:00:47]} d5 {[%emt 0:01:47]} (7... a5 $11) 8. Qe2 {[%emt 0:15:40]} a5 $14 {[%emt 0:03:37]} 9. O-O {[%emt 0:07:56]} Nf6 {[%emt 0:08:18]} 10. Na3 {[%emt 0:09:11]} Qe7 {[%emt 0:14:07]} 11. Nb5 {[%emt 0:10:35]} O-O {[%emt 0:01:30]} 12. Bg5 {[%emt 0:03:09]} Bb6 {[%emt 0:08:22]} 13. Bh4 {[%emt 0:05:44]} Rad8 {[%emt 0:18:14]} 14. d4 dxe4 {[%emt 0:12:56]} 15. Nxe5 {[%emt 0:02:14]} Rd5 {[%emt 0:00:04]} 16. Ng4 {[%emt 0:04:02]} Nd8 {[%emt 0:14:01]} 17. c4 {[%emt 0:04:56]} Rxd4 {[%emt 0:00:08]} 18. Nxf6+ {[%emt 0:02:33]} gxf6 {[%emt 0:00:35]} 19. Nxd4 {[%emt 0:00:06]} Bxd4 {[%emt 0:00:07]} 20. Ra3 {[%emt 0:03:08]} Kh8 {[%emt 0:00:58]} 21. Rb3 {[%emt 0:02:10]} Qc5 {[%emt 0:00:19]} 22. Rb5 {[%emt 0:01:24]} Qc6 {[%emt 0:01:27]} 23. Rd1 {[%emt 0:00:54]} e5 {[%emt 0:00:19]} 24. Rd5 {[%emt 0:03:08]} Ne6 {[%emt 0:01:12]} 25. Qxe4 {[%emt 0:01:02]} Qxc4 {[%emt 0:00:33]} 26. Qf3 {[%emt 0:00:27]} f5 {[%emt 0:01:03]} 27. b3 {[%emt 0:01:34]} Qc6 {[%emt 0:00:20]} 28. Rxa5 {[%emt 0:00:50]} e4 {[%emt 0:00:44]} 29. Qh5 {[%emt 0:01:12]} Qc2 {[%emt 0:00:25]} 30. Rf1 {[%emt 0:00:52]} Ng7 {[%emt 0:00:36]} 31. Qd1 {[%emt 0:01:14]} Qc3 {[%emt 0:00:30]} 32. Rd5 {[%emt 0:00:50]} c5 {[%emt 0:00:03]} 33. Rd7 {[%emt 0:00:42]} f4 {[%emt 0:00:24]} 34. Kh1 {[%emt 0:02:07]} Nf5 {[%emt 0:00:42]} 35. Qh5 {[%emt 0:00:31]} Bg7 {[%emt 0:00:10]} 36. Rf7 {[%emt 0:01:14]} Qe5 {[%emt 0:00:45]} 37. Rxf8+ {[%emt 0:00:29]} Bxf8 {[%emt 0:00:04]} 38. Qf7 {[%emt 0:00:35]} Bg7 {[%emt 0:00:04]} 39. Rd1 {[%emt 0:00:26]} Nd4 {[%emt 0:00:14]} 40. Qxb7 {[%emt 0:00:00]} h6 {[%emt 0:00:00]} 41. a5 {[%emt 0:03:56]} Qh5 {[%emt 0:02:23]} 42. Qa8+ {[%emt 0:00:56]} Kh7 {[%emt 0:00:04]} 43. Qxe4+ {[%emt 0:00:05]} Kg8 {[%emt 0:00:23]} 44. f3 {[%emt 0:00:37]} Qf7 {[%emt 0:07:27]} 45. a6 {[%emt 0:00:20]} Qxb3 {[%emt 0:00:03]} 46. Rb1 {[%emt 0:00:26]} Qa4 {[%emt 0:01:03]} 47. Rb8+ {[%emt 0:00:15]} Kf7 {[%emt 0:00:06]} 48. Qe8+ {[%emt 0:01:08]} Qxe8 {[%emt 0:00:08]} 49. Rxe8 {[%emt 0:00:04]} 1-0